fUST/lending_fUST_20241227
["ID","MTS","AMOUNT","RATE_DAILY","PERIOD"]
[346722926,1735243852920,-500.0,0.00017232,2]
[346722927,1735243852929,-500.0,0.00017232,2]
[346722928,1735243852938,-151.0,0.00017232,2]
[346722929,1735243852948,-500.0,0.00017232,2]
[346722930,1735243852957,-500.0,0.00017232,2]
[346722931,1735243852966,-524.52,0.00017232,2]
[346722932,1735243852976,-500.0,0.00017232,2]
[346722933,1735243852985,-500.0,0.00017232,2]
[346722934,1735243852995,-500.0,0.00017232,2]
[346722935,1735243853004,-500.0,0.00017232,2]
[346722936,1735243853014,-500.0,0.00017232,2]
[346722937,1735243853023,-500.0,0.00017232,2]
[346722938,1735243853033,-500.0,0.00017232,2]
[346722939,1735243853043,-500.0,0.00017232,2]
[346722940,1735243853052,-1039.84,0.00017232,2]
[346722941,1735243853061,-500.0,0.00017232,2]
[346722942,1735243853071,-500.0,0.00017232,2]
[346722943,1735243853080,-151.0,0.00017232,2]
[346722944,1735243853090,-1561.07,0.00017232,2]
[346722945,1735243853099,-271.9048754,0.00017232,2]
[346722946,1735243853108,-502.79,0.00017232,2]
[346722947,1735243853117,-500.0,0.00017232,2]
[346722948,1735243853127,-500.0,0.00017232,2]
[346722949,1735243853136,-500.0,0.00017232,2]
[346722950,1735243853146,-500.0,0.00017232,2]
[346722951,1735243853155,-500.0,0.00017232,2]
[346722952,1735243853165,-500.0,0.00017232,2]
[346722953,1735243853249,-500.0,0.00017232,2]
[346722954,1735243853258,-500.0,0.00017232,2]
[346722955,1735243853268,-811.82,0.00017232,2]
[346722956,1735243853277,-500.0,0.00017232,2]
[346722957,1735243853286,-591.23,0.00017232,2]
[346722958,1735243853295,-500.0,0.00017232,2]
[346722959,1735243853304,-765.24,0.00017232,2]
[346722960,1735243853313,-423.22931254,0.00017232,2]
[346722961,1735243853323,-169.230482,0.00017232,2]
[346722962,1735243853331,-500.0,0.00017232,2]
[346722963,1735243853340,-755.22,0.00017232,2]
[346722964,1735243853350,-587.44,0.00017232,2]
[346722965,1735243853359,-500.0,0.00017232,2]
[346722966,1735243853368,-500.0,0.00017232,2]
[346722967,1735243853378,-515.23,0.00017232,2]
[346722968,1735243853387,-20108.69,0.00017232,2]
[346722969,1735243853396,-500.0,0.00017232,2]
[346722970,1735243853405,-500.0,0.00017232,2]
[346722971,1735243853415,-500.0,0.00017232,2]
[346722972,1735243853424,-500.0,0.00017232,2]
[346722973,1735243853433,-500.0,0.00017232,2]
[346722974,1735243853443,-500.0,0.00017232,2]
[346722975,1735243853452,-500.0,0.00017232,2]
[346722976,1735243853461,-560.4,0.00017232,2]
[346722977,1735243853470,-500.0,0.00017232,2]
[346722978,1735243853479,-151.0,0.00017232,2]
[346722979,1735243853488,-504.51964922,0.00017232,2]
[346722980,1735243853498,-500.0,0.00017232,2]
[346722981,1735243853507,-500.0,0.00017232,2]
[346722982,1735243853516,-500.0,0.00017232,2]
[346722983,1735243853525,-500.0,0.00017232,2]
[346722984,1735243853534,-500.0,0.00017232,2]
[346722985,1735243853543,-500.0,0.00017232,2]
[346722986,1735243853552,-507.40298177,0.00017232,2]
[346722987,1735243853561,-607.91,0.00017232,2]
[346722988,1735243853570,-517.27391455,0.00017232,2]
[346722989,1735243853581,-671.998705,0.00017232,2]
[346722990,1735243853590,-500.0,0.00017232,2]
[346722991,1735243853600,-671.998705,0.00017232,2]
[346722992,1735243853609,-710.99,0.00017232,2]
[346722993,1735243853618,-500.0,0.00017232,2]
[346722994,1735243853628,-500.0,0.00017232,2]
[346722995,1735243853640,-500.0,0.00017232,2]
[346722996,1735243853649,-500.0,0.00017232,2]
[346722997,1735243853658,-500.0,0.00017232,2]
[346722998,1735243853667,-500.0,0.00017232,2]
[346722999,1735243853677,-500.0,0.00017232,2]
[346723000,1735243853687,-462842.62122864,0.00017233,2]
[346723001,1735243853981,-1176.63974855,0.00017233,2]
[346723002,1735243883956,2390.87551906,0.00016124,2]
[346723003,1735243883977,734.56668094,0.00016124,2]
[346723010,1735244444344,398.0,0.00023,120]
[346723011,1735244464847,1795.62720024,0.00020539,31]
[346723014,1735244747155,-160.69859466,0.00013695,2]
[346723015,1735244747183,-160.69859466,0.00013833,2]
[346723016,1735244747212,-181.18973215,0.00013973,2]
[346723018,1735244825088,-218.81026785,0.00013973,2]
[346723019,1735244825110,-300.0,0.00015956,2]
[346723020,1735244825133,-95.55807681,0.00015956,2]
[346723021,1735244828113,-204.44192319,0.00015956,2]
[346723022,1735244828139,-195.2533941,0.00015958,2]
[346723023,1735244828171,-767.58703285,0.00015958,2]
[346723024,1735244841088,-241.7045543,0.00015958,2]
[346723025,1735244850244,-11531.34316665,0.00015958,2]
[346723026,1735244850268,-208.40312286,0.00016087,2]
[346723035,1735244945192,-251.1789851,0.00015875,2]
[346723036,1735244945214,-573.79229944,0.00016668,2]
[346723037,1735244945235,-7118.34656363,0.00016757,2]
[346723038,1735244945255,-300.0,0.00016768,2]
[346723039,1735244945276,-300.0,0.00016768,2]
[346723040,1735244945298,-1017.74,0.00016769,2]
[346723041,1735244945319,-500.0,0.00016769,2]
[346723042,1735244945340,-500.0,0.00016769,2]
[346723043,1735244945361,-500.0,0.00016769,2]
[346723044,1735244945382,-500.0,0.00016769,2]
[346723045,1735244945403,-500.0,0.00016769,2]
[346723046,1735244945424,-1327.08895749,0.00016769,2]
[346723047,1735244948109,-4670.57104251,0.00016769,2]
[346723048,1735244948131,-168.97275749,0.00016769,2]
[346723052,1735245021895,222.0,8.98e-05,2]
[346723111,1735245032530,-363.98724251,0.00016769,2]
[346723113,1735245032541,-2682.94,0.00016769,2]
[346723115,1735245032551,-680.00307865,0.00016769,2]
[346723117,1735245032563,-329.93070449,0.00016769,2]
[346723140,1735245038472,-101.09621686,0.00016769,2]
[346723141,1735245038482,-162.01557227,0.0001686,2]
[346723142,1735245038527,-69.33427953,0.0001686,2]
[346723143,1735245038536,-500.0,0.00016934,2]
[346723144,1735245038546,-500.0,0.00016934,2]
[346723145,1735245038555,-975.33,0.00016934,2]
[346723146,1735245038565,-500.0,0.00016934,2]
[346723147,1735245038574,-500.0,0.00016934,2]
[346723148,1735245038584,-214.0,0.00016954,2]
[346723149,1735245038593,-251.01775287,0.00016954,2]
[346723150,1735245038604,-248.98224713,0.00016954,2]
[346723151,1735245038613,-500.0,0.00016954,2]
[346723152,1735245038623,-500.0,0.00016955,2]
[346723153,1735245038632,-253.70437381,0.00016955,2]
[346723154,1735245038644,-246.29562619,0.00016955,2]
[346723155,1735245038653,-500.0,0.00016955,2]
[346723156,1735245038662,-24.80248666,0.00016955,2]
[346723193,1735245040517,-475.19751334,0.00016955,2]
[346723195,1735245040527,-500.0,0.00016955,2]
[346723197,1735245040536,-500.0,0.00016955,2]
[346723199,1735245040545,-500.0,0.00016955,2]
[346723203,1735245040670,-500.0,0.00016955,2]
[346723204,1735245040687,-500.0,0.00016955,2]
[346723205,1735245040696,-500.0,0.00016955,2]
[346723206,1735245040705,-500.0,0.00016955,2]
[346723207,1735245040714,-364.11440527,0.00016955,2]
[346723208,1735245040724,-619.9,0.00016955,2]
[346723209,1735245040733,-500.0,0.00016955,2]
[346723210,1735245040742,-235.87,0.00016955,2]
[346723211,1735245040753,-500.0,0.00016955,2]
[346723212,1735245040762,-500.0,0.00016955,2]
[346723213,1735245040772,-325.19895138,0.00016955,2]
[346723214,1735245040784,-376.77104862,0.00016955,2]
[346723215,1735245040793,-467.17654725,0.00016955,2]
[346723216,1735245040805,-77.02345275,0.00016955,2]
[346723217,1735245040815,-577.24,0.00016955,2]
[346723218,1735245040824,-554.56,0.00016955,2]
[346723219,1735245040833,-242.18,0.00016955,2]
[346723220,1735245040842,-500.0,0.00016955,2]
[346723221,1735245040851,-500.0,0.00016955,2]
[346723222,1735245040863,-1034.06,0.00016955,2]
[346723223,1735245040872,-1476.77,0.00016955,2]
[346723224,1735245040881,-213.54201412,0.00016955,2]
[346723225,1735245040893,-286.45798588,0.00016955,2]
[346723226,1735245040902,-726.48,0.00016955,2]
[346723227,1735245040911,-500.0,0.00016955,2]
[346723228,1735245040920,-263.34223867,0.00016955,2]
[346723229,1735245040930,-500.0,0.00016955,2]
[346723230,1735245040940,-520.016539,0.00016955,2]
[346723231,1735245040949,-500.0,0.00016955,2]
[346723232,1735245040958,-771.99,0.00016955,2]
[346723233,1735245040968,-726.92,0.00016955,2]
[346723234,1735245040979,-162.32,0.00016955,2]
[346723235,1735245040988,-559.32,0.00016955,2]
[346723236,1735245040998,-500.0,0.00016955,2]
[346723237,1735245041008,-500.0,0.00016955,2]
[346723238,1735245041017,-500.0,0.00016955,2]
[346723239,1735245041026,-500.0,0.00016955,2]
[346723240,1735245041035,-500.0,0.00016955,2]
[346723241,1735245041045,-487.86211657,0.00016955,2]
[346723261,1735245043527,-12.13788343,0.00016955,2]
[346723262,1735245043538,-500.0,0.00016955,2]
[346723263,1735245043548,-500.0,0.00016955,2]
[346723264,1735245043557,-500.0,0.00016955,2]
[346723266,1735245043567,-507.59108074,0.00016956,2]
[346723268,1735245043576,-500.0,0.00016956,2]
[346723270,1735245043585,-500.0,0.00016956,2]
[346723271,1735245043595,-500.0,0.00016956,2]
[346723273,1735245043604,-637.88,0.00016956,2]
[346723274,1735245043613,-500.0,0.00016956,2]
[346723276,1735245043623,-500.0,0.00016956,2]
[346723277,1735245043632,-500.0,0.00016956,2]
[346723278,1735245043642,-500.0,0.00016956,2]
[346723279,1735245043651,-500.0,0.00016956,2]
[346723280,1735245043661,-500.0,0.00016956,2]
[346723282,1735245043670,-500.0,0.00016956,2]
[346723283,1735245043680,-417.58761788,0.00016956,2]
[346723285,1735245043690,-500.0,0.00016956,2]
[346723287,1735245043699,-500.0,0.00016956,2]
[346723289,1735245043708,-500.0,0.00016956,2]
[346723290,1735245043718,-500.0,0.00016956,2]
[346723291,1735245043728,-500.0,0.00016956,2]
[346723292,1735245043737,-500.0,0.00016956,2]
[346723293,1735245043747,-500.0,0.00016956,2]
[346723294,1735245043756,-500.0,0.00016956,2]
[346723295,1735245043765,-500.0,0.00016956,2]
[346723296,1735245043774,-500.0,0.00016956,2]
[346723297,1735245043783,-500.0,0.00016956,2]
[346723298,1735245043792,-500.0,0.00016956,2]
[346723299,1735245043802,-500.0,0.00016956,2]
[346723300,1735245043811,-500.0,0.00016956,2]
[346723301,1735245043820,-500.0,0.00016956,2]
[346723302,1735245043829,-500.0,0.00016956,2]
[346723303,1735245043838,-500.0,0.00016956,2]
[346723304,1735245043847,-500.0,0.00016956,2]
[346723305,1735245043856,-500.0,0.00016956,2]
[346723306,1735245043865,-352.07182993,0.00016956,2]
[346723307,1735245043874,-475.36457546,0.00016956,2]
[346723308,1735245043883,-472.07496135,0.00016956,2]
[346723309,1735245043892,-500.0,0.00016956,2]
[346723310,1735245043901,-500.0,0.00016956,2]
[346723311,1735245043916,-500.0,0.00016956,2]
[346723312,1735245043932,-500.0,0.00016956,2]
[346723313,1735245043943,-500.0,0.00016956,2]
[346723314,1735245043953,-500.0,0.00016956,2]
[346723315,1735245043962,-500.0,0.00016956,2]
[346723316,1735245043973,-500.0,0.00016956,2]
[346723317,1735245043982,-260.15685075,0.00016956,2]
[346723318,1735245043992,-500.0,0.00016956,2]
[346723319,1735245044002,-500.0,0.00016956,2]
[346723320,1735245044012,-500.0,0.00016956,2]
[346723321,1735245044022,-602.78,0.00016956,2]
[346723322,1735245044032,-225.74653219,0.00016956,2]
[346723323,1735245044042,-500.0,0.00016956,2]
[346723324,1735245044054,-701.98,0.00016956,2]
[346723325,1735245044064,-500.0,0.00016956,2]
[346723326,1735245044074,-500.0,0.00016956,2]
[346723327,1735245044084,-500.0,0.00016956,2]
[346723328,1735245044095,-500.0,0.00016956,2]
[346723329,1735245044105,-500.0,0.00016956,2]
[346723330,1735245044115,-500.0,0.00016956,2]
[346723331,1735245044125,-500.0,0.00016956,2]
[346723332,1735245044135,-500.0,0.00016956,2]
[346723333,1735245044145,-500.0,0.00016956,2]
[346723334,1735245044155,-500.0,0.00016956,2]
[346723335,1735245044165,-500.0,0.00016956,2]
[346723336,1735245044176,-500.0,0.00016956,2]
[346723337,1735245044185,-500.0,0.00016956,2]
[346723338,1735245044195,-500.0,0.00016956,2]
[346723339,1735245044205,-500.0,0.00016956,2]
[346723340,1735245044215,-500.0,0.00016956,2]
[346723341,1735245044225,-500.0,0.00016956,2]
[346723342,1735245044235,-515.88,0.00016956,2]
[346723343,1735245044245,-500.0,0.00016956,2]
[346723344,1735245044262,-500.0,0.00016956,2]
[346723345,1735245044271,-500.0,0.00016956,2]
[346723346,1735245044281,-18432.96,0.00016956,2]
[346723347,1735245044291,-500.0,0.00016956,2]
[346723348,1735245044300,-500.0,0.00016956,2]
[346723349,1735245044310,-500.0,0.00016956,2]
[346723350,1735245044320,-500.0,0.00016956,2]
[346723351,1735245044329,-505.28700191,0.00016956,2]
[346723352,1735245044339,-500.0,0.00016956,2]
[346723353,1735245044349,-500.0,0.00016956,2]
[346723354,1735245044359,-500.0,0.00016956,2]
[346723355,1735245044368,-500.0,0.00016956,2]
[346723356,1735245044377,-500.0,0.00016956,2]
[346723357,1735245044387,-500.0,0.00016956,2]
[346723358,1735245044396,-500.0,0.00016956,2]
[346723359,1735245044406,-500.0,0.00016956,2]
[346723360,1735245044416,-355.47254111,0.00016956,2]
[346723361,1735245044425,-500.0,0.00016956,2]
[346723362,1735245044434,-500.0,0.00016956,2]
[346723363,1735245044444,-500.0,0.00016956,2]
[346723364,1735245044453,-500.0,0.00016956,2]
[346723365,1735245044463,-501.00962022,0.00016956,2]
[346723366,1735245044472,-500.0,0.00016956,2]
[346723367,1735245044481,-500.0,0.00016956,2]
[346723368,1735245044491,-501.67118395,0.00016956,2]
[346723369,1735245044504,-500.0,0.00016956,2]
[346723370,1735245044515,-500.0,0.00016956,2]
[346723371,1735245044524,-500.0,0.00016956,2]
[346723372,1735245044534,-500.0,0.00016956,2]
[346723373,1735245044543,-500.0,0.00016957,2]
[346723374,1735245044552,-500.0,0.00016957,2]
[346723375,1735245044561,-500.0,0.00016957,2]
[346723376,1735245044572,-500.0,0.00016957,2]
[346723377,1735245044582,-500.0,0.00016957,2]
[346723378,1735245044591,-500.0,0.00016957,2]
[346723379,1735245044601,-500.0,0.00016957,2]
[346723380,1735245044610,-500.0,0.00016957,2]
[346723381,1735245044620,-500.0,0.00016957,2]
[346723382,1735245044630,-500.0,0.00016957,2]
[346723383,1735245044639,-384.00866294,0.00016957,2]
[346723384,1735245044649,-500.0,0.00016957,2]
[346723385,1735245044659,-500.0,0.00016957,2]
[346723386,1735245044670,-500.0,0.00016957,2]
[346723387,1735245044679,-500.0,0.00016957,2]
[346723388,1735245044690,-500.0,0.00016957,2]
[346723389,1735245044701,-569.62,0.00016957,2]
[346723390,1735245044711,-500.0,0.00016957,2]
[346723391,1735245044720,-500.0,0.00016957,2]
[346723392,1735245044730,-500.0,0.00016957,2]
[346723393,1735245044739,-500.0,0.00016957,2]
[346723394,1735245044749,-500.0,0.00016957,2]
[346723395,1735245044758,-500.0,0.00016957,2]
[346723396,1735245044767,-500.0,0.00016957,2]
[346723397,1735245044776,-500.0,0.00016957,2]
[346723398,1735245044785,-500.0,0.00016957,2]
[346723399,1735245044794,-500.0,0.00016957,2]
[346723400,1735245044803,-500.0,0.00016957,2]
[346723401,1735245044813,-500.0,0.00016957,2]
[346723402,1735245044822,-500.0,0.00016957,2]
[346723403,1735245044831,-500.0,0.00016957,2]
[346723404,1735245044841,-798.14,0.00016957,2]
[346723405,1735245044851,-500.0,0.00016957,2]
[346723406,1735245044861,-500.0,0.00016957,2]
[346723407,1735245044870,-500.0,0.00016957,2]
[346723408,1735245044880,-500.0,0.00016957,2]
[346723409,1735245044889,-1614.47,0.00016957,2]
[346723410,1735245044898,-500.0,0.00016957,2]
[346723411,1735245044908,-500.0,0.00016957,2]
[346723412,1735245044917,-500.0,0.00016957,2]
[346723413,1735245044927,-795.99,0.00016957,2]
[346723414,1735245044936,-500.0,0.00016957,2]
[346723415,1735245044945,-500.0,0.00016957,2]
[346723416,1735245044954,-500.0,0.00016957,2]
[346723417,1735245044963,-268.24254296,0.00016957,2]
[346723418,1735245044973,-500.0,0.00016957,2]
[346723419,1735245044982,-523.48,0.00016957,2]
[346723420,1735245044993,-500.0,0.00016957,2]
[346723421,1735245045004,-500.0,0.00016957,2]
[346723422,1735245045014,-500.0,0.00016957,2]
[346723423,1735245045024,-633.38056615,0.00016957,2]
[346723424,1735245045034,-504.154288,0.00016957,2]
[346723425,1735245045044,-1037.5,0.00016957,2]
[346723426,1735245045060,-500.0,0.00016957,2]
[346723427,1735245045070,-500.0,0.00016957,2]
[346723428,1735245045081,-500.0,0.00016957,2]
[346723429,1735245045091,-500.0,0.00016957,2]
[346723430,1735245045103,-625.56,0.00016957,2]
[346723431,1735245045112,-1026.12,0.00016957,2]
[346723432,1735245045122,-500.0,0.00016957,2]
[346723433,1735245045134,-500.0,0.00016957,2]
[346723434,1735245045144,-500.0,0.00016957,2]
[346723435,1735245045155,-500.0,0.00016957,2]
[346723436,1735245045164,-500.0,0.00016957,2]
[346723437,1735245045174,-500.0,0.00016957,2]
[346723438,1735245045183,-500.0,0.00016957,2]
[346723439,1735245045192,-500.0,0.00016957,2]
[346723440,1735245045201,-558.68,0.00016957,2]
[346723441,1735245045212,-387.76346305,0.00016958,2]
[346723442,1735245045221,-501.36811935,0.00016958,2]
[346723443,1735245045231,-501.75917748,0.00016958,2]
[346723444,1735245045241,-500.0,0.00016958,2]
[346723445,1735245045253,-500.0,0.00016958,2]
[346723446,1735245045262,-500.0,0.00016958,2]
[346723447,1735245045273,-500.0,0.00016958,2]
[346723448,1735245045283,-500.0,0.00016958,2]
[346723449,1735245045295,-500.0,0.00016958,2]
[346723450,1735245045304,-500.0,0.00016958,2]
[346723451,1735245045314,-500.0,0.00016958,2]
[346723452,1735245045323,-500.0,0.00016958,2]
[346723453,1735245045332,-500.0,0.00016958,2]
[346723454,1735245045342,-500.0,0.00016958,2]
[346723455,1735245045353,-500.0,0.00016958,2]
[346723456,1735245045363,-500.0,0.00016958,2]
[346723457,1735245045375,-500.0,0.00016958,2]
[346723458,1735245045384,-500.0,0.00016958,2]
[346723459,1735245045394,-500.0,0.00016958,2]
[346723460,1735245045403,-500.0,0.00016958,2]
[346723461,1735245045412,-500.0,0.00016958,2]
[346723462,1735245045422,-500.0,0.00016958,2]
[346723463,1735245045431,-500.0,0.00016958,2]
[346723464,1735245045441,-503.96971554,0.00016958,2]
[346723465,1735245045453,-500.0,0.00016958,2]
[346723466,1735245045463,-500.0,0.00016958,2]
[346723467,1735245045472,-500.0,0.00016958,2]
[346723468,1735245045589,-607.18424753,0.00016958,2]
[346723469,1735245045598,-500.0,0.00016958,2]
[346723470,1735245045608,-500.0,0.00016958,2]
[346723471,1735245045617,-500.0,0.00016958,2]
[346723472,1735245045626,-513.97035956,0.00016958,2]
[346723473,1735245045635,-504.41109643,0.00016958,2]
[346723474,1735245045645,-500.0,0.00016958,2]
[346723475,1735245045654,-173.0744863,0.00016958,2]
[346723476,1735245045663,-500.0,0.00016958,2]
[346723477,1735245045673,-500.0,0.00016958,2]
[346723478,1735245045683,-506.45958371,0.00016958,2]
[346723479,1735245045693,-500.0,0.00016958,2]
[346723480,1735245045702,-500.0,0.00016958,2]
[346723481,1735245045711,-500.0,0.00016958,2]
[346723482,1735245045720,-500.0,0.00016958,2]
[346723483,1735245045732,-500.0,0.00016958,2]
[346723484,1735245045742,-500.0,0.00016958,2]
[346723485,1735245045752,-500.0,0.00016958,2]
[346723486,1735245045761,-500.0,0.00016958,2]
[346723487,1735245045771,-506.27792582,0.00016958,2]
[346723488,1735245045780,-500.0,0.00016958,2]
[346723489,1735245045789,-500.0,0.00016958,2]
[346723490,1735245045800,-500.0,0.00016958,2]
[346723491,1735245045809,-974.74596419,0.00016958,2]
[346723492,1735245045820,-500.0,0.00016958,2]
[346723493,1735245045829,-500.0,0.00016958,2]
[346723494,1735245045839,-500.0,0.00016958,2]
[346723495,1735245045850,-500.0,0.00016958,2]
[346723497,1735245045859,-500.0,0.00016958,2]
[346723498,1735245045868,-500.0,0.00016958,2]
[346723500,1735245045877,-500.0,0.00016958,2]
[346723502,1735245045887,-500.0,0.00016958,2]
[346723504,1735245045897,-500.0,0.00016958,2]
[346723506,1735245045906,-168.83013866,0.00016958,2]
[346723507,1735245045915,-500.0,0.00016958,2]
[346723509,1735245045924,-500.0,0.00016958,2]
[346723511,1735245045934,-500.0,0.00016958,2]
[346723513,1735245045944,-487.79554073,0.00016958,2]
[346723515,1735245045952,-500.0,0.00016958,2]
[346723516,1735245045961,-500.0,0.00016958,2]
[346723519,1735245045971,-500.0,0.00016958,2]
[346723520,1735245045980,-500.0,0.00016958,2]
[346723523,1735245045990,-585.24,0.00016958,2]
[346723525,1735245046002,-500.0,0.00016958,2]
[346723527,1735245046011,-500.0,0.00016958,2]
[346723528,1735245046020,-500.0,0.00016958,2]
[346723529,1735245046030,-500.0,0.00016958,2]
[346723530,1735245046039,-500.0,0.00016958,2]
[346723532,1735245046051,-500.0,0.00016958,2]
[346723535,1735245046067,-500.0,0.00016958,2]
[346723537,1735245046078,-500.0,0.00016958,2]
[346723538,1735245046088,-501.54484452,0.00016958,2]
[346723540,1735245046098,-500.0,0.00016958,2]
[346723542,1735245046108,-500.0,0.00016958,2]
[346723544,1735245046117,-500.0,0.00016958,2]
[346723546,1735245046127,-500.0,0.00016958,2]
[346723548,1735245046137,-500.0,0.00016958,2]
[346723550,1735245046146,-500.0,0.00016958,2]
[346723552,1735245046155,-500.0,0.00016958,2]
[346723554,1735245046165,-500.0,0.00016958,2]
[346723556,1735245046174,-349.60246664,0.00016958,2]
[346723558,1735245046183,-500.0,0.00016958,2]
[346723560,1735245046193,-500.0,0.00016958,2]
[346723562,1735245046203,-576.9748309,0.00016958,2]
[346723564,1735245046212,-510.96531195,0.00016959,2]
[346723566,1735245046222,-500.0,0.00016959,2]
[346723568,1735245046232,-500.0,0.00016959,2]
[346723570,1735245046241,-500.0,0.00016959,2]
[346723572,1735245046252,-4725.85,0.00016959,2]
[346723574,1735245046261,-570.0,0.00016959,2]
[346723576,1735245046271,-500.0,0.00016959,2]
[346723579,1735245046280,-500.0,0.00016959,2]
[346723580,1735245046290,-500.0,0.0001696,2]
[346723582,1735245046299,-3738.85,0.0001696,2]
[346723583,1735245046309,-500.0,0.00016962,2]
[346723585,1735245046318,-500.0,0.00016962,2]
[346723586,1735245046328,-500.0,0.00016962,2]
[346723587,1735245046337,-623.956,0.00017,2]
[346723588,1735245046346,-201.49695372,0.00017,7]
[346723589,1735245046355,-500.0,0.00017043,2]
[346723590,1735245046365,-500.0,0.00017043,2]
[346723591,1735245046374,-5997.66,0.00017043,2]
[346723592,1735245046384,-2682.94,0.00017043,2]
[346723593,1735245046393,-1111.03,0.00017043,2]
[346723594,1735245046402,-666.0,0.00017133,2]
[346723595,1735245046411,-2693.44265355,0.00017133,2]
[346723596,1735245046421,-975.30015868,0.000172,2]
[346723597,1735245046430,-500.0,0.00017208,2]
[346723598,1735245046440,-500.0,0.00017208,2]
[346723599,1735245046449,-975.33,0.00017208,2]
[346723600,1735245046458,-306.72400431,0.00017208,2]
[346723601,1735245046467,-500.0,0.00017208,2]
[346723602,1735245046477,-500.0,0.00017228,2]
[346723603,1735245046486,-500.0,0.00017229,2]
[346723604,1735245046495,-625.75,0.00017229,2]
[346723605,1735245046506,-500.0,0.00017229,2]
[346723606,1735245046515,-154.46699974,0.00017229,2]
[346723607,1735245046524,-218.10813913,0.00017229,2]
[346723608,1735245046534,-515.75,0.00017229,2]
[346723609,1735245046543,-500.0,0.00017229,2]
[346723610,1735245046553,-500.0,0.00017229,2]
[346723611,1735245046562,-500.0,0.00017229,2]
[346723612,1735245046572,-500.0,0.00017229,2]
[346723613,1735245046581,-500.0,0.00017229,2]
[346723614,1735245046591,-619.9,0.00017229,2]
[346723615,1735245046601,-500.0,0.00017229,2]
[346723616,1735245046610,-500.0,0.00017229,2]
[346723617,1735245046619,-500.0,0.00017229,2]
[346723618,1735245046629,-701.97,0.00017229,2]
[346723619,1735245046638,-577.24,0.00017229,2]
[346723620,1735245046648,-500.0,0.00017229,2]
[346723621,1735245046657,-372.51991183,0.00017229,2]
[346723632,1735245047056,-661.54008817,0.00017229,2]
[346723633,1735245047066,-1476.77,0.00017229,2]
[346723634,1735245047075,-726.48,0.00017229,2]
[346723635,1735245047084,-500.0,0.00017229,2]
[346723636,1735245047094,-500.0,0.00017229,2]
[346723637,1735245047103,-771.99,0.00017229,2]
[346723638,1735245047113,-726.92,0.00017229,2]
[346723639,1735245047123,-559.32,0.00017229,2]
[346723640,1735245047134,-500.0,0.00017229,2]
[346723641,1735245047143,-567.38,0.00017229,2]
[346723642,1735245047153,-500.0,0.00017229,2]
[346723643,1735245047162,-500.0,0.00017229,2]
[346723644,1735245047171,-500.0,0.00017229,2]
[346723645,1735245047180,-500.0,0.00017229,2]
[346723646,1735245047190,-500.0,0.00017229,2]
[346723647,1735245047200,-10509.29659183,0.00017229,7]
[346723648,1735245047211,-515122.34458529,0.00017229,7]
[346723649,1735245047221,-500.0,0.0001723,2]
[346723650,1735245047230,-500.0,0.0001723,2]